bitfinex-derivatives/quotes_ETHF0:USTF0_20250416
["timestamp","ask_amount","ask_price","bid_price","bid_amount"]
[1744789303192,1.27617,1567.4,1567.3,1.2761]
[1744789303387,1.27617,1567.4,1567.3,7.0589]
[1744789303785,1.27617,1567.4,1567.3,5.7828]
[1744789304591,2.89857,1567.4,1567.3,5.7828]
[1744789305091,1.27617,1567.4,1567.3,7.05898]
[1744789307094,2.11642657,1567.5,1567.4,1.2761]
[1744789307290,0.00955657,1567.5,1567.4,2.9107]
[1744789307592,0.00955657,1567.5,1567.4,3.7403]
[1744789307794,1.27588,1567.7,1567.6,1.27593]
[1744789307989,1.27588,1567.7,1567.6,5.57593]
[1744789308191,1.27588,1567.7,1567.6,6.39483]
[1744789308591,1.27583,1567.8,1567.7,1.27578]
[1744789308791,1.27583,1567.8,1567.7,4.48358]
[1744789310294,0.00955657,1567.9,1567.8,1.27577]
[1744789310495,6.29422665,1568.1,1568.0,1.27561]
[1744789310701,6.29422665,1568.1,1568.0,8.78341]
[1744789311089,6.29422665,1568.1,1568.0,13.78341]
[1744789312295,0.00955657,1568.2,1568.1,1.27553]
[1744789312506,1.28499657,1568.2,1568.1,1.27553]
[1744789312998,1.27553,1568.1,1568.0,8.79289657]
[1744789313198,1.27553,1568.1,1568.0,8.79189657]
[1744789313399,2.95943,1568.1,1568.0,8.79189657]
[1744789313700,2.95943,1568.1,1568.0,4.49289657]
[1744789313902,2.95943,1568.1,1568.0,8.79189657]
[1744789314104,2.95943,1568.1,1568.0,7.51635657]
[1744789314795,2.95943,1568.1,1568.0,8.79196657]
[1744789315298,2.95943,1568.1,1568.0,7.51635657]
[1744789315603,2.95943,1568.1,1568.0,5.58416657]
[1744789316903,2.95943,1568.1,1568.0,4.30855657]
[1744789318899,2.95943,1568.1,1568.0,0.00955657]
[1744789319206,7.95943,1568.1,1568.0,0.00955657]
[1744789320207,2.95943,1568.1,1568.0,0.00955657]
[1744789320406,1.6839,1568.1,1568.0,1.28516657]
[1744789320804,1.6839,1568.1,1568.0,2.96926657]
[1744789321301,2.95943,1568.1,1568.0,2.96926657]
[1744789322710,0.00955657,1568.2,1568.1,1.27553]
[1744789322907,1.28508657,1568.2,1568.1,11.29953]
[1744789323704,0.00955657,1568.2,1568.1,16.29953]
[1744789323912,1.27524,1568.5,1568.4,1.2752]
[1744789324211,2.89499,1568.6,1568.5,1.2752]
[1744789324505,2.89499,1568.6,1568.5,3.0419]
[1744789324898,2.89499,1568.6,1568.5,1.7667]
[1744789325308,1.2752,1568.5,1568.4,45.098]
[1744789325509,2.9132,1568.5,1568.4,45.098]
[1744789327007,7.9132,1568.5,1568.4,45.098]
[1744789327511,2.9132,1568.5,1568.4,45.098]
[1744789329712,2.9132,1568.5,1568.4,40.8]
[1744789330011,1.27536,1568.3,1568.2,4.297]
[1744789330416,3.83964,1568.4,1568.3,1.27536]
[1744789330712,3.83964,1568.4,1568.3,40.8]
[1744789330909,3.83964,1568.4,1568.3,42.4178]
[1744789331811,1.27527,1568.5,1568.3,42.4178]
[1744789332012,2.94237,1568.5,1568.4,1.6178]
[1744789332518,2.94237,1568.5,1568.4,2.89308]
[1744789332710,2.94237,1568.5,1568.4,6.10088]
[1744789333221,2.94237,1568.5,1568.4,1.6178]
[1744789334717,2.94237,1568.5,1568.4,2.89308]
[1744789334919,1.27528,1568.4,1568.3,40.8]
[1744789335219,2.88228,1568.4,1568.3,40.8]
[1744789336716,1.607,1568.4,1568.0,3.21735657]
[1744789337015,1.27553,1568.1,1568.0,0.00955657]
[1744789337216,1.27553,1568.1,1568.0,40.80955657]
[1744789337417,2.89103,1568.1,1568.0,42.46955657]
[1744789337620,2.89103,1568.1,1568.0,40.80955657]
[1744789338322,6.09883,1568.1,1568.0,0.00955657]
[1744789338518,2.89103,1568.1,1568.0,0.00955657]
[1744789339524,7.89103,1568.1,1568.0,0.00955657]
[1744789339822,7.89103,1568.1,1567.5,2.14087]
[1744789339823,1.27593,1567.6,1567.5,4.297]
[1744789340814,2.91113,1567.6,1567.5,4.297]
[1744789341019,2.91113,1567.6,1567.5,6.0273]
[1744789343624,0.00955657,1567.7,1567.5,6.0273]
[1744789343924,0.00955657,1567.7,1567.6,6.24183]
[1744789344220,0.00955657,1567.7,1567.6,5.8416]
[1744789344221,1.28540657,1567.7,1567.6,5.8416]
[1744789344719,1.28540657,1567.7,1567.6,3.90973]
[1744789345427,1.28540657,1567.7,1567.6,44.70973]
[1744789345625,0.00955657,1567.7,1567.6,47.91753]
[1744789345924,0.00955657,1567.7,1567.6,52.91753]
[1744789350030,0.00955657,1567.7,1567.6,47.91753]
[1744789350226,3.18843,1568.3,1568.0,1.27553]
[1744789350423,1.27558,1568.1,1568.0,5.57353]
[1744789350622,1.27558,1568.1,1568.0,6.42253]
[1744789351024,1.27558,1568.1,1568.0,4.298]
[1744789351328,6.27558,1568.1,1568.0,4.298]
[1744789351627,8.03828,1568.1,1568.0,4.298]
[1744789352431,3.03828,1568.1,1568.0,4.298]
[1744789354332,3.03828,1568.1,1568.0,5.57361]
[1744789354527,0.00637108,1568.2,1568.1,1.27553]
[1744789354732,1.28189108,1568.2,1568.1,2.13093]
[1744789354934,0.00637108,1568.2,1568.1,6.18963]
[1744789355727,1.27526,1568.5,1568.4,1.2752]
[1744789355934,6.29422665,1568.6,1568.5,1.2752]
[1744789356123,7.56934665,1568.6,1568.5,46.1339]
[1744789356529,6.29422665,1568.6,1568.5,44.8587]
[1744789356722,1.27512,1568.6,1568.5,41.6509]
[1744789356921,1.27512,1568.6,1568.5,42.9261]
[1744789357118,1.27512,1568.6,1568.5,41.6509]
[1744789357326,2.99182,1568.6,1568.5,41.6509]
[1744789359331,11.19962,1568.6,1568.5,40.8]
[1744789360337,1.2752,1568.5,1568.4,4.30755657]
[1744789360533,3.7728,1568.5,1568.4,4.30755657]
[1744789360734,8.7728,1568.5,1568.4,40.80955657]
[1744789363946,3.7728,1568.5,1568.4,40.80955657]
[1744789365945,14.7088,1568.5,1568.4,0.00955657]
[1744789366148,1.27561,1568.0,1567.9,2.13149]
[1744789366349,1.27549,1568.2,1568.1,1.27546]
[1744789366551,1.27549,1568.2,1568.1,45.28326]
[1744789366948,1.27542,1568.3,1568.2,1.27539]
[1744789367149,1.27542,1568.3,1568.2,6.42819]
[1744789367449,1.27542,1568.3,1568.2,5.1528]
[1744789367649,1.27542,1568.3,1568.2,5.976]
[1744789368146,1.27542,1568.3,1568.2,7.6619]
[1744789369652,3.04292,1568.3,1568.2,5.9829]
[1744789370849,3.04292,1568.3,1568.2,4.297]
[1744789373154,3.04292,1568.3,1568.2,5.9051]
[1744789376752,8.04292,1568.3,1568.2,1.6081]
[1744789377057,1.27544,1568.2,1568.1,0.00955657]
[1744789377257,3.21735657,1568.4,1568.3,1.27536]
[1744789377464,0.00955657,1568.4,1568.3,1.27536]
[1744789377757,0.00955657,1568.4,1568.3,8.06746]
[1744789378060,1.28483657,1568.4,1568.3,48.86746]
[1744789378749,1.28483657,1568.4,1568.3,52.07526]
[1744789381157,0.00955657,1568.4,1568.3,57.07526]
[1744789382057,1.27505,1568.7,1568.6,1.27504]
[1744789382248,7.56923665,1568.8,1568.7,1.27504]
[1744789382449,6.29422665,1568.8,1568.7,1.27504]
[1744789382656,6.29422665,1568.8,1568.7,3.00574]
[1744789382861,1.27494,1568.9,1568.8,1.2749]
[1744789383059,1.27494,1568.9,1568.8,47.0134]
[1744789383257,7.56908665,1569.0,1568.9,1.27488]
[1744789383562,7.56908665,1569.0,1568.9,6.0377]
[1744789383762,9.29538665,1569.0,1568.9,6.0377]
[1744789386565,9.29538665,1569.0,1568.9,4.307]
[1744789387064,3.00116,1569.0,1568.9,4.307]
[1744789387466,3.00116,1569.0,1568.9,5.9872]
[1744789388663,1.27486,1569.0,1568.9,5.9872]
[1744789389965,2.96396,1569.0,1568.9,5.9872]
[1744789393362,1.27486,1569.0,1568.9,5.9872]
[1744789394170,1.27486,1569.0,1568.9,7.26208]
[1744789395165,3.18627,1569.4,1569.0,3.18699]
[1744789395367,1.27451,1569.4,1569.3,1.27448]
[1744789395569,1.27451,1569.4,1569.3,5.58048]
[1744789395872,1.27451,1569.4,1569.3,7.32938]
[1744789396169,1.27451,1569.4,1569.3,8.18428]
[1744789396472,1.27451,1569.4,1569.3,45.106]
[1744789397172,2.88121,1569.4,1569.3,45.106]
[1744789398575,1.27451,1569.4,1569.3,45.106]
[1744789398771,1.27451,1569.4,1569.3,46.8571]
[1744789399874,3.04271,1569.4,1569.3,46.8571]
[1744789400475,1.27443,1569.5,1569.4,1.27441]
[1744789400676,1.27443,1569.5,1569.4,6.10721]
[1744789401176,1.27443,1569.5,1569.4,2.89941]
[1744789401378,8.34490565,1570.2,1569.8,1.27414]
[1744789401670,1.27398,1570.0,1569.9,7.5678]
[1744789401872,1.27398,1570.0,1569.9,49.64186]
[1744789402271,1.27398,1570.0,1569.9,48.3678]
[1744789402480,1.27398,1570.0,1569.9,47.5549]
[1744789402677,2.96858,1570.0,1569.9,48.82896]
[1744789402865,2.96858,1570.0,1569.9,45.104]
[1744789403270,2.96858,1570.0,1569.9,48.00306]
[1744789405394,8.37629665,1570.1,1570.0,1.27398]
[1744789405574,6.29422665,1570.1,1570.0,3.83588]
[1744789405776,7.56812665,1570.1,1570.0,3.83588]
[1744789406076,1.27387,1570.2,1570.1,1.27384]
[1744789406271,1.27387,1570.2,1570.1,3.76064]
[1744789406667,1.27398,1570.0,1569.9,49.58581]
[1744789406881,2.96876,1570.1,1570.0,1.27398]
[1744789407077,2.96876,1570.1,1570.0,2.91498]
[1744789411277,1.27396,1570.1,1570.0,2.91498]
[1744789411478,1.27388,1570.2,1570.1,1.27382]
[1744789411683,1.27388,1570.2,1570.1,2.98942]
[1744789412984,4.48159,1570.3,1570.2,1.27382]
[1744789413282,4.48159,1570.3,1570.2,8.07832]
[1744789413586,4.48159,1570.3,1570.2,6.8045]
[1744789413779,6.13449,1570.3,1570.2,8.07832]
[1744789413977,4.48159,1570.3,1570.2,8.07832]
[1744789414184,4.48159,1570.3,1570.2,11.28612]
[1744789414185,1.27379,1570.3,1570.2,11.28612]
[1744789414484,1.27379,1570.3,1570.2,6.8045]
[1744789414675,1.27379,1570.3,1570.2,4.331]
[1744789414872,3.73899,1570.3,1570.2,4.331]
[1744789416885,3.73899,1570.3,1570.2,5.60482]
[1744789417086,3.73899,1570.3,1570.2,4.331]
[1744789420186,4.55809,1570.3,1570.2,4.331]
[1744789420588,1.27379,1570.3,1570.2,4.331]
[1744789420790,1.27379,1570.3,1570.2,6.47762]
[1744789420991,1.27379,1570.3,1570.2,5.2038]
[1744789421589,3.00869,1570.3,1570.2,6.9218]
[1744789424194,3.00869,1570.3,1570.2,8.19562]
[1744789424397,3.00869,1570.3,1570.2,6.9218]
[1744789425398,3.00869,1570.3,1570.2,8.19562]
[1744789426298,1.27374,1570.4,1570.3,1.27368]
[1744789426495,1.27374,1570.4,1570.3,6.12878]
[1744789426688,1.27374,1570.4,1570.3,6.95108]
[1744789426884,3.82266,1570.6,1570.5,1.27358]
[1744789427101,1.27356,1570.6,1570.5,5.60358]
[1744789427289,1.27356,1570.6,1570.5,8.11668]
[1744789427499,2.12938,1570.7,1570.6,1.2735]
[1744789427699,1.27341,1570.7,1570.6,2.4696]
[1744789427998,3.82411,1570.7,1570.6,2.4696]
[1744789428193,3.82411,1570.7,1570.6,43.2696]
[1744789430188,3.82411,1570.7,1570.6,40.8]
[1744789431592,1.27341,1570.7,1570.6,40.8]
[1744789431897,1.27341,1570.7,1570.6,42.451]
[1744789432100,3.00791,1570.7,1570.6,42.451]
[1744789432397,3.00791,1570.7,1570.6,40.8]
[1744789437802,3.00791,1570.7,1570.6,42.5342]
[1744789440203,3.00791,1570.7,1570.6,43.8077]
[1744789440503,1.27341,1570.7,1570.6,43.8077]
[1744789440701,1.27338,1570.8,1570.7,1.27341]
[1744789440898,1.27338,1570.8,1570.7,3.68551]
[1744789443907,1.26403793,1570.9,1570.8,47.5162]
[1744789445111,1.26403793,1570.9,1570.8,48.78953]
[1744789445501,3.18277,1571.1,1570.9,1.27322]
[1744789445704,1.27309,1571.1,1571.0,0.862]
[1744789446104,1.27309,1571.1,1571.0,2.5834]
[1744789446308,1.27309,1571.1,1571.0,43.3834]
[1744789446505,1.27309,1571.1,1571.0,40.8]
[1744789446811,2.97489,1571.1,1571.0,40.8]
[1744789472638,2.97489,1571.1,1570.9,1.6745]
[1744789472639,1.27341,1570.7,1570.6,0.00955657]
[1744789472844,1.27341,1570.7,1570.6,1.6942745]
[1744789473033,1.27341,1570.7,1570.6,42.4942745]
[1744789473636,2.95131,1570.7,1570.6,42.4942745]
[1744789475343,2.95131,1570.7,1570.6,40.8002745]
[1744789475736,6.15911,1570.7,1570.6,40.8002745]
[1744789475937,6.15911,1570.7,1570.6,0.0002745]
[1744789476442,6.15911,1570.7,1570.6,40.8002745]
[1744789478044,6.15911,1570.7,1570.6,41.6544745]
[1744789480750,6.15911,1570.7,1570.6,40.8002745]
[1744789482835,11.15911,1570.7,1570.6,0.0002745]
[1744789484944,17.09511,1570.7,1570.6,0.0002745]
[1744789492248,23.38933665,1570.7,1570.6,0.0002745]
[1744789493760,23.38933665,1570.7,1570.3,1.6446]
[1744789493761,1.27366,1570.4,1570.3,1.6440745]
[1744789493959,1.27374,1570.3,1570.2,0.8133]
[1744789494156,9.69604,1570.3,1570.2,0.8133]
[1744789494755,10.21020217,1570.3,1570.2,0.8133]
[1744789497060,10.21020217,1570.3,1570.2,2.4402]
[1744789498064,7.20974,1570.3,1570.2,2.4402]
[1744789498264,7.20974,1570.3,1570.2,7.4402]
[1744789498467,7.20974,1570.3,1570.2,10.648]
[1744789498765,7.20974,1570.3,1570.2,14.94]
[1744789498961,7.20974,1570.3,1570.2,16.21382]
[1744789499565,7.20974,1570.3,1570.2,14.94]
[1744789500161,7.20974,1570.3,1570.2,16.21382]
[1744789500357,5.936,1570.3,1570.2,16.21382]
[1744789500563,7.20974,1570.3,1570.2,16.21382]
[1744789500763,1.27374,1570.3,1570.2,16.21382]
[1744789501360,5.94528207,1570.8,1570.3,3.18435]
[1744789501566,1.27354,1570.6,1570.5,1.27352]
[1744789501760,1.27354,1570.6,1570.5,9.63832]
[1744789501962,1.27349,1570.7,1570.6,1.27346]
[1744789502162,1.2735,1570.6,1570.5,9.63831]
[1744789502669,1.27348,1570.7,1570.6,1.27345]
[1744789502871,1.2735,1570.6,1570.5,9.63831]
[1744789503271,1.2735,1570.6,1570.5,14.63831]
[1744789503472,1.2735,1570.6,1570.5,13.3648]
[1744789503675,1.2735,1570.6,1570.5,8.3648]
[1744789503975,1.2735,1570.6,1570.5,13.3648]
[1744789505571,1.2735,1570.6,1570.5,14.63838]
[1744789507581,1.2735,1570.6,1570.5,9.63838]
[1744789507977,1.27345,1570.7,1570.6,1.27342]
[1744789510379,1.2735,1570.6,1570.5,9.63831]
[1744789511678,1.2735,1570.6,1570.5,8.3648]
[1744789511890,1.2735,1570.6,1570.5,5.157]
[1744789513188,3.18375,1570.6,1570.1,3.21735657]
[1744789513490,1.27366,1570.4,1570.3,4.29]
[1744789513878,1.27374,1570.3,1570.2,0.8308]
[1744789514485,12.07137,1570.5,1570.3,1.27369]
[1744789514486,1.27369,1570.4,1570.3,1.27369]
[1744789515987,1.2737,1570.4,1570.3,1.27367]
[1744789516388,1.2737,1570.4,1570.3,4.48147]
[1744789518695,1.27364,1570.5,1570.4,1.2736]
[1744789518990,1.27356,1570.6,1570.5,1.27351]
[1744789519181,12.31218207,1570.8,1570.5,4.8275]
[1744789519385,1.27341,1570.7,1570.6,42.9376]
[1744789519580,1.27341,1570.7,1570.6,44.6265]
[1744789519890,1.27341,1570.7,1570.6,43.353]
[1744789521097,1.27341,1570.7,1570.6,42.4889]
[1744789521287,3.86621,1570.7,1570.6,42.4889]
[1744789522394,3.18375,1570.6,1570.2,5.56376]
[1744789522597,1.27374,1570.3,1570.2,6.38046]
[1744789522897,1.27374,1570.3,1570.2,47.18046]
[1744789523498,2.12112,1570.4,1570.3,1.27374]
[1744789523683,2.12112,1570.4,1570.3,3.01154]
[1744789524395,1.27372,1570.4,1570.3,3.01154]
[1744789524692,3.88705,1570.5,1570.4,1.27366]
[1744789524893,1.27365,1570.5,1570.4,3.01146]
[1744789525199,1.27365,1570.5,1570.4,1.7378]
[1744789525995,1.27365,1570.5,1570.4,3.01146]
[1744789529593,1.27365,1570.5,1570.4,1.7378]
[1744789529794,3.02455,1570.5,1570.4,1.7378]
[1744789530400,3.02455,1570.5,1570.4,3.01146]
[1744789532100,3.02455,1570.5,1570.4,1.7378]
[1744789532499,3.02455,1570.5,1570.4,3.01146]
[1744789533409,3.02455,1570.5,1570.4,1.7378]
[1744789533598,3.02455,1570.5,1570.4,3.01146]
[1744789534908,1.27366,1570.4,1570.3,3.2078]
[1744789535207,2.89826,1570.4,1570.3,4.8055]
[1744789535407,3.76926,1570.4,1570.3,4.8055]
[1744789535900,1.27374,1570.3,1570.2,40.8]
[1744789536101,3.76044,1570.3,1570.2,40.8]
[1744789536999,6.96824,1570.3,1570.2,40.8]
[1744789549119,6.96824,1570.3,1570.1,0.00955657]
[1744789549120,5.6945,1570.3,1570.1,0.00955657]
[1744789549325,2.89722,1570.2,1570.1,0.00955657]
[1744789561126,12.5594,1570.2,1569.5,3.2078]
[1744789561326,1.27431,1569.6,1569.5,1.6178]
[1744789561632,1.27439,1569.5,1569.4,49.30184126]
[1744789561829,4.65649,1569.5,1569.4,8.50184126]
[1744789562233,4.65649,1569.5,1569.4,51.03324126]
[1744789563825,1.27439,1569.5,1569.4,51.03324126]
[1744789566330,1.27439,1569.5,1569.4,10.23324126]
[1744789566634,2.97469,1569.5,1569.4,10.23324126]
[1744789566933,2.97469,1569.5,1569.4,51.03324126]
[1744789568431,2.97469,1569.5,1569.4,40.8]
[1744789568626,1.27447,1569.4,1569.3,0.82605657]
[1744789568831,4.66247,1569.4,1569.3,0.82605657]
[1744789569033,3.388,1569.4,1569.0,0.88]
[1744789569236,1.27479,1569.0,1568.9,2.5769]
[1744789569432,4.88781,1569.3,1568.9,2.5769]
[1744789569651,1.27477,1569.1,1569.0,1.7576]
[1744789571153,3.2078,1569.3,1569.0,1.7576]
[1744789571344,1.27464,1569.2,1569.1,4.0309]
[1744789571652,1.27464,1569.2,1569.1,0.8231]
[1744789573650,1.27479,1569.0,1568.9,0.00955657]
[1744789573850,1.27479,1569.0,1568.9,0.84575657]
[1744789574251,2.96229,1569.0,1568.9,0.84575657]
[1744789576150,1.27479,1569.0,1568.9,0.84575657]
[1744789580348,1.27475,1569.1,1568.9,0.84575657]
[1744789580550,10.41835,1569.4,1569.0,7.4988]
[1744789580856,1.27447,1569.5,1569.4,1.27444]
[1744789581059,1.27447,1569.5,1569.4,8.77324]
[1744789581259,0.00955657,1569.6,1569.5,1.27439]
[1744789581554,0.00955657,1569.6,1569.5,2.10799]
[1744789581753,0.00955657,1569.6,1569.5,47.90799]
[1744789588051,1.28386657,1569.6,1569.5,42.90799]
[1744789588254,1.28386657,1569.6,1569.5,44.62919]
[1744789588452,1.28386657,1569.6,1569.5,40.8]
[1744789588660,3.04286657,1569.6,1569.5,40.8]
[1744789589055,1.28386657,1569.6,1569.5,42.07439]
[1744789589251,9.1438,1570.2,1569.5,47.5212]
[1744789589554,3.01245,1570.1,1570.0,1.27397]
[1744789589755,1.27398,1570.0,1569.9,8.14191]
[1744789590251,1.27398,1570.0,1569.9,48.94191]
[1744789590859,1.27398,1570.0,1569.9,47.6679]
[1744789592054,3.02200657,1570.1,1569.9,48.94196]
[1744789592259,3.02200657,1570.1,1570.0,1.7487]
[1744789592957,1.27398,1570.0,1569.9,45.9192]
[1744789593157,3.02638,1570.0,1569.9,47.5822]
[1744789594056,1.7524,1570.0,1569.9,48.85626]
[1744789594563,3.02638,1570.0,1569.9,47.5822]
[1744789595560,3.02638,1570.0,1569.9,48.85626]
[1744789595961,1.7524,1570.0,1569.9,48.85626]
[1744789596362,3.02638,1570.0,1569.9,48.85626]
[1744789597363,3.02638,1570.0,1569.9,47.5822]
[1744789597561,3.02638,1570.0,1569.9,45.09]
[1744789598051,3.02638,1570.0,1569.9,46.36406]
[1744789598253,3.02638,1570.0,1569.9,46.7997]
[1744789599062,3.02638,1570.0,1569.9,45.09]
[1744789600965,3.02638,1570.0,1569.9,46.36406]
[1744789601358,3.02638,1570.0,1569.9,48.10136]
[1744789601658,1.7524,1570.0,1569.9,48.10136]
[1744789601858,1.7524,1570.0,1569.9,48.93366]
[1744789602764,3.02638,1570.0,1569.9,48.93366]
[1744789604864,3.02638,1570.0,1569.9,47.6596]
[1744789605056,3.02638,1570.0,1569.9,46.8273]
[1744789605255,3.02638,1570.0,1569.9,45.09]
[1744789606062,1.27406,1569.9,1569.8,0.00955657]
[1744789606261,7.87456,1569.9,1569.8,0.00955657]
[1744789606567,1.27439,1569.5,1569.4,4.321]
[1744789606866,1.27447,1569.4,1569.3,40.8]
[1744789607061,2.10617,1569.4,1569.3,40.8]
[1744789607562,3.83097,1569.4,1569.3,40.8]
[1744789608667,3.83097,1569.4,1569.3,42.07455]
[1744789608967,3.83097,1569.4,1569.3,40.8]
[1744789609166,3.83097,1569.4,1569.3,42.4919]
[1744789609862,3.83097,1569.4,1569.3,42.61509071]
[1744789610067,3.83097,1569.4,1569.3,40.92319071]
[1744789617470,3.83097,1569.4,1569.3,42.56139071]
[1744789620384,1.27447,1569.4,1569.3,43.83594071]
[1744789620574,1.27447,1569.4,1569.3,44.66824071]
[1744789621674,1.27444,1569.5,1569.4,1.2744]
[1744789621882,1.27437,1569.6,1569.5,1.27433]
[1744789622081,1.27437,1569.6,1569.5,8.06563]
[1744789622783,1.27437,1569.6,1569.5,8.14185395]
[1744789624382,1.27428,1569.7,1569.6,1.27423]
[1744789624679,1.27428,1569.7,1569.6,5.7433]
[1744789624880,1.27428,1569.7,1569.6,5.81952395]
[1744789625177,3.02198,1569.7,1569.6,5.81952395]
[1744789627378,11.22978,1569.7,1569.6,0.07622395]
[1744789627578,8.86288,1569.7,1569.6,0.07622395]
[1744789628266,1.27428,1569.7,1569.6,0.07622395]
[1744789628471,1.27428,1569.7,1569.6,1.35053395]
[1744789628679,1.27428,1569.7,1569.6,0.07622395]
[1744789628977,3.01238,1569.7,1569.6,0.07622395]
[1744789629371,6.22018,1569.7,1569.6,0.07622395]
[1744789629882,3.01238,1569.7,1569.6,0.07622395]
[1744789630074,8.94838,1569.7,1569.6,0.07622395]
[1744789630681,1.20686678,1569.5,1569.4,3.2078]
[1744789631081,3.80436678,1569.5,1569.4,3.2078]
[1744789632374,3.80436678,1569.5,1569.4,4.8017]
[1744789634078,1.27438,1569.6,1569.4,6.07617]
[1744789634377,1.27431,1569.6,1569.5,2.86829]
[1744789634679,1.27431,1569.6,1569.5,2.4007]
[1744789634981,1.27439,1569.5,1569.4,3.2078]
[1744789635481,1.27439,1569.5,1569.4,6.91737]
[1744789637381,1.27439,1569.5,1569.4,5.6429]
[1744789639081,1.27439,1569.5,1569.4,6.91737]
[1744789639283,1.30711871,1569.5,1569.4,6.91737]
[1744789639981,1.30711871,1569.5,1569.4,3.2078]
[1744789640181,1.27447,1569.4,1569.3,45.096]
[1744789640377,2.96009871,1569.4,1569.3,4.296]
[1744789640578,1.27455,1569.3,1569.2,0.00955657]
[1744789640781,6.17915,1569.3,1569.2,0.00955657]
[1744789640977,11.17915,1569.3,1569.2,0.00955657]
[1744789641175,17.11515,1569.3,1569.2,0.00955657]
[1744789641382,17.14787871,1569.3,1569.2,0.00955657]
[1744789642586,17.14787871,1569.3,1568.9,45.096]
[1744789642587,1.27479,1569.0,1568.9,45.096]
[1744789642887,1.27479,1569.0,1568.9,46.7519]
[1744789643385,1.30751871,1569.0,1568.9,46.7519]
[1744789643686,3.06661871,1569.0,1568.9,46.7519]
[1744789645082,3.06661871,1569.0,1568.9,45.096]
[1744789645582,3.06661871,1569.0,1568.9,40.8]
[1744789645786,1.27488,1568.9,1568.8,0.00955657]
[1744789645983,3.1874,1568.8,1568.5,4.297]
[1744789646191,1.27512,1568.6,1568.5,4.297]
[1744789646489,1.30784871,1568.6,1568.5,5.9824]
[1744789646691,1.30784871,1568.6,1568.5,46.7824]
[1744789648178,0.03272871,1568.6,1568.5,48.0576]
[1744789648380,1.30784871,1568.6,1568.5,48.0576]
[1744789648881,1.30784871,1568.6,1568.5,46.7824]
[1744789650693,0.03272871,1568.6,1568.5,48.0576]
[1744789651583,1.30784871,1568.6,1568.5,46.7824]
[1744789652487,1.30784871,1568.6,1568.5,45.097]
[1744789653685,1.30784871,1568.6,1568.5,40.8]
[1744789653891,3.05304871,1568.6,1568.5,40.8]
[1744789654090,1.2752,1568.5,1568.4,4.86175657]
[1744789654285,3.0204,1568.5,1568.4,4.86175657]
[1744789654478,3.05312871,1568.5,1568.4,4.86175657]
[1744789654682,3.05312871,1568.5,1568.4,45.66175657]
[1744789655389,3.05312871,1568.5,1568.4,4.86175657]
[1744789655793,3.05312871,1568.5,1568.4,45.66175657]
[1744789655985,3.05312871,1568.5,1568.4,40.80955657]
[1744789656492,4.66022871,1568.5,1568.4,40.80955657]
[1744789659686,1.30792871,1568.5,1568.4,40.80955657]
[1744789659885,0.03272871,1568.5,1568.4,42.08483657]
[1744789660091,0.03272871,1568.5,1568.4,43.84993657]
[1744789660399,0.03272871,1568.5,1568.4,52.22433657]
[1744789660598,1.30792871,1568.5,1568.4,52.22433657]
[1744789660898,0.03272871,1568.5,1568.4,57.22433657]
[1744789662397,0.03272871,1568.5,1568.4,52.22433657]
[1744789663400,1.30792871,1568.5,1568.4,47.74125657]
[1744789664203,1.30792871,1568.5,1568.4,49.01653657]
[1744789665104,1.30792871,1568.5,1568.4,47.74125657]
[1744789665707,1.30792871,1568.5,1568.4,49.01653657]
[1744789668609,1.30792871,1568.5,1568.4,47.74125657]
[1744789671409,1.27569,1567.9,1567.8,0.8592]
[1744789671612,1.30841871,1567.9,1567.8,0.8592]
[1744789671808,1.30841871,1567.9,1567.8,2.5498]
[1744789672013,1.30841871,1567.9,1567.8,43.3498]
[1744789672423,2.95051871,1567.9,1567.8,43.3498]
[1744789672719,2.95051871,1567.9,1567.8,42.4906]
[1744789674311,0.03272871,1567.9,1567.8,46.97417]
[1744789674808,1.30841871,1567.9,1567.8,45.6984]
[1744789675212,1.30841871,1567.9,1567.8,42.4906]
[1744789675213,3.04361871,1567.9,1567.8,42.4906]
[1744789676315,3.04361871,1567.9,1567.8,1.6906]
[1744789676523,3.91501871,1567.9,1567.8,1.6906]
[1744789676919,1.27577,1567.8,1567.7,42.90406108]
[1744789677118,1.27577,1567.8,1567.7,43.38427108]
[1744789677318,3.01097,1567.8,1567.7,43.38427108]
[1744789677621,3.04369871,1567.8,1567.7,43.38427108]
[1744789677820,3.04369871,1567.8,1567.7,44.66012108]
[1744789678924,3.04369871,1567.8,1567.7,43.38427108]
[1744789679314,3.04369871,1567.8,1567.7,44.66012108]
[1744789679719,3.04369871,1567.8,1567.7,40.80637108]
[1744789680525,3.04369871,1567.8,1567.7,42.46127108]
[1744789680918,3.04369871,1567.8,1567.7,43.73712108]
[1744789681114,3.04369871,1567.8,1567.7,42.46127108]
[1744789681623,0.03272871,1567.8,1567.7,44.57762108]
[1744789681820,0.03272871,1567.8,1567.7,45.40792108]
[1744789682026,0.03272871,1567.8,1567.7,50.40792108]
[1744789684827,1.30849871,1567.8,1567.7,45.40792108]
[1744789685220,0.03272871,1567.8,1567.7,45.40792108]
[1744789685425,1.30849871,1567.8,1567.7,45.40792108]
[1744789685719,0.03272871,1567.8,1567.7,45.40792108]
[1744789690731,1.27571,1567.9,1567.8,0.90944153]
[1744789691028,1.27571,1567.9,1567.8,10.01544153]
[1744789693228,1.27571,1567.9,1567.8,6.80764153]
[1744789693530,1.27571,1567.9,1567.8,10.01544153]
[1744789694924,3.04221,1567.9,1567.8,10.01544153]
[1744789697223,3.04221,1567.9,1567.8,4.293]
[1744789697426,1.27577,1567.8,1567.7,42.47717108]
[1744789697623,3.76047,1567.8,1567.7,40.80637108]
[1744789698022,4.09408746,1567.8,1567.7,40.80637108]
[1744789700629,4.1300456,1567.8,1567.7,40.80637108]